bitfinex/quotes_BTCUSD_20220218
["timestamp","ask_amount","ask_price","bid_price","bid_amount"]
[1645182546991,0.3787118,40508.0,40506.0,0.00355355]
[1645182547389,0.3787118,40508.0,40506.0,0.25444372]
[1645182547390,0.44820742,40508.0,40506.0,0.25444372]
[1645182547590,3.12401562,40508.0,40506.0,0.0021]
[1645182548894,0.11499042,40508.0,40506.0,0.0021]
[1645182549292,0.11499042,40508.0,40503.0,0.012061]
[1645182549293,0.333217,40507.0,40503.0,0.012061]
[1645182549494,0.333217,40507.0,40500.0,3.31275131]
[1645182549495,0.76949562,40504.0,40500.0,3.31275131]
[1645182549697,0.123575,40502.0,40500.0,3.31275131]
[1645182549977,0.7,40504.0,40500.0,3.31275131]
[1645182550176,0.7,40504.0,40502.0,0.3050219]
[1645182550574,0.333217,40503.0,40502.0,0.3050219]
[1645182550976,1.033217,40503.0,40500.0,3.31275131]
[1645182551276,1.15678362,40503.0,40500.0,3.31275131]
[1645182552076,1.15678362,40503.0,40501.0,0.34376491]
[1645182552077,1.21856662,40503.0,40501.0,0.34376491]
[1645182552275,1.21856662,40503.0,40500.0,3.57508173]
[1645182552576,1.28034862,40503.0,40500.0,3.57508173]
[1645182552777,1.28034862,40503.0,40500.0,3.81008173]
[1645182553082,0.061787,40504.0,40500.0,3.80508173]
[1645182553592,0.061787,40504.0,40500.0,3.80547756]
[1645182554093,0.061787,40504.0,40501.0,0.2501019]
[1645182555093,0.061787,40504.0,40501.0,0.5501019]
[1645182555297,0.061761,40507.0,40501.0,0.5501019]
[1645182555496,0.061761,40507.0,40501.0,0.6501019]
[1645182555697,0.061761,40507.0,40501.0,0.5501019]
[1645182555900,0.061761,40507.0,40501.0,0.64983285]
[1645182556095,0.061761,40507.0,40502.0,0.00039581]
[1645182556996,0.061761,40507.0,40501.0,0.24983285]
[1645182557196,0.061761,40507.0,40506.0,0.22847073]
[1645182557649,9.48e-05,40508.0,40507.0,1.48971246]
[1645182557850,9.48e-05,40508.0,40507.0,0.57292946]
[1645182558249,0.7,40515.0,40507.0,0.23971246]
[1645182558455,0.7,40515.0,40508.0,0.62426143]
[1645182559653,0.7,40515.0,40514.0,0.55671293]
[1645182559852,0.00040257,40516.0,40514.0,0.22349593]
[1645182560050,0.00040257,40516.0,40515.0,0.333217]
[1645182560651,0.061747,40518.0,40515.0,0.31220801]
[1645182560852,0.06214958,40518.0,40515.0,0.31220801]
[1645182561110,0.06214958,40518.0,40516.0,0.333217]
[1645182561303,0.00040258,40518.0,40516.0,0.333217]
[1645182561900,0.7,40525.0,40520.0,0.22609355]
[1645182562101,0.7,40525.0,40524.0,0.21857649]
[1645182562300,0.7,40525.0,40524.0,0.1514312]
[1645182562301,0.06949562,40525.0,40524.0,0.1514312]
[1645182562903,0.13123562,40525.0,40524.0,0.1514312]
[1645182563302,0.12325338,40525.0,40524.0,0.1514312]
[1645182563902,0.12325338,40525.0,40524.0,0.41331828]
[1645182564103,0.06151338,40525.0,40524.0,0.41331828]
[1645182564503,0.06151338,40525.0,40524.0,0.74653528]
[1645182565153,0.06151338,40525.0,40524.0,0.333217]
[1645182565351,0.06151338,40525.0,40521.0,0.00026793]
[1645182565352,0.061744,40524.0,40521.0,0.00026793]
[1645182565547,0.061744,40524.0,40520.0,0.05]
[1645182565548,0.06151338,40522.0,40520.0,0.05]
[1645182565750,0.06151338,40521.0,40520.0,0.05]
[1645182566047,0.06151338,40521.0,40520.0,0.383217]
[1645182566250,0.06151338,40521.0,40520.0,0.05]
[1645182567047,0.06151338,40521.0,40520.0,0.24043143]
[1645182567249,0.00040256,40523.0,40520.0,0.24043143]
[1645182567449,0.05101411,40521.0,40520.0,0.24043143]
[1645182568614,0.05101411,40521.0,40520.0,0.24069933]
[1645182568821,0.05101411,40521.0,40520.0,0.57391633]
[1645182569214,0.05101411,40521.0,40520.0,0.24069933]
[1645182569617,0.05101411,40521.0,40520.0,0.57391633]
[1645182570315,0.05101411,40521.0,40520.0,0.24069933]
[1645182570516,0.05101411,40521.0,40520.0,0.24043143]
[1645182570915,0.05101411,40521.0,40520.0,0.48043143]
[1645182570916,0.10138423,40521.0,40520.0,0.48043143]
[1645182571116,0.15239834,40521.0,40520.0,0.48043143]
[1645182571518,0.15239834,40521.0,40520.0,0.48069933]
[1645182571717,0.15239834,40521.0,40520.0,0.48043143]
[1645182572542,0.15239834,40521.0,40520.0,0.81364843]
[1645182572745,0.15334098,40521.0,40520.0,0.81364843]
[1645182572944,0.00094644,40522.0,40521.0,0.9]
[1645182573144,0.00034585,40522.0,40521.0,0.3]
[1645182573342,0.00034585,40522.0,40521.0,0.333217]
[1645182574145,0.061734,40527.0,40522.0,1.25]
[1645182574347,0.12346136,40533.0,40524.0,0.30783807]
[1645182574545,0.3,40535.0,40525.0,0.333217]
[1645182575144,0.3,40535.0,40525.0,0.52839303]
[1645182575344,0.36062687,40536.0,40531.0,0.19234493]
[1645182575547,0.77023278,40532.0,40531.0,0.19234493]
[1645182575744,0.77023278,40532.0,40531.0,0.17311044]
[1645182576194,0.77023278,40532.0,40531.0,0.50632744]
[1645182576598,0.77023278,40532.0,40531.0,0.17311044]
[1645182576793,0.77023278,40532.0,40531.0,0.50632744]
[1645182576993,0.77023278,40532.0,40531.0,0.17311044]
[1645182577594,0.77023278,40532.0,40531.0,0.50632744]
[1645182577994,0.77023278,40532.0,40531.0,0.17311044]
[1645182578993,0.77023278,40532.0,40531.0,0.50632744]
[1645182579198,0.761727,40532.0,40531.0,0.17311044]
[1645182579400,0.06210841,40534.0,40531.0,0.50632744]
[1645182579598,0.00038141,40534.0,40532.0,0.333217]
[1645182580047,0.07400779,40537.0,40532.0,0.333217]
[1645182580246,0.0002836,40535.0,40532.0,0.333217]
[1645182580446,0.23491826,40541.0,40534.0,0.333217]
[1645182580649,0.0095,40544.0,40535.0,0.333217]
[1645182580650,0.02585721,40543.0,40535.0,0.333217]
[1645182580848,0.0095,40544.0,40536.0,0.333217]
[1645182581050,0.06287492,40548.0,40539.0,0.333217]
[1645182581051,0.00116402,40548.0,40539.0,0.333217]
[1645182581252,0.00116402,40548.0,40541.0,0.333217]
[1645182581452,0.00116402,40548.0,40541.0,0.64462348]
[1645182581648,0.00116402,40548.0,40546.0,0.18972331]
[1645182581857,0.00116402,40548.0,40547.0,0.59763203]
[1645182582051,4.02e-06,40548.0,40547.0,0.59763203]
[1645182583350,4.02e-06,40548.0,40547.0,0.79303203]
[1645182583632,4.02e-06,40548.0,40547.0,1.09303203]
[1645182583822,4.02e-06,40548.0,40547.0,0.0454]
[1645182584223,4.02e-06,40548.0,40547.0,0.378617]
[1645182585026,4.02e-06,40548.0,40547.0,0.333217]
[1645182586028,4.02e-06,40548.0,40547.0,0.56170044]
[1645182586227,4.02e-06,40548.0,40547.0,0.333217]
[1645182587646,4.02e-06,40548.0,40547.0,0.59501246]
[1645182587849,4.02e-06,40548.0,40547.0,0.53042795]
[1645182588547,4.02e-06,40548.0,40547.0,0.27269508]
[1645182589553,4.02e-06,40548.0,40547.0,0.46303503]
[1645182589748,4.02e-06,40548.0,40547.0,0.27269508]
[1645182592399,4.02e-06,40548.0,40547.0,0.27393569]
[1645182592599,4.02e-06,40548.0,40547.0,0.27521816]
[1645182593202,4.02e-06,40548.0,40547.0,0.27531409]
[1645182594004,4.02e-06,40548.0,40547.0,0.51531409]
[1645182594207,4.02e-06,40548.0,40547.0,0.56531409]
[1645182594405,4.02e-06,40548.0,40547.0,0.57711122]
[1645182597553,4.02e-06,40548.0,40547.0,0.57319593]
[1645182597554,0.00039235,40548.0,40547.0,0.57319593]
[1645182597753,2.35e-06,40548.0,40547.0,0.80947963]
[1645182598351,2.35e-06,40548.0,40547.0,1.15277468]
[1645182599495,2.35e-06,40548.0,40547.0,0.91649098]
[1645182600095,2.35e-06,40549.0,40548.0,0.3331]
[1645182602552,0.00076573,40549.0,40548.0,0.3331]
[1645182603348,0.00076573,40549.0,40548.0,0.3331798]
[1645182603953,0.00076573,40549.0,40548.0,7.98e-05]
[1645182605154,0.00076573,40549.0,40548.0,0.28909811]
[1645182605350,0.00076573,40549.0,40548.0,7.98e-05]
[1645182606206,0.00076573,40549.0,40548.0,0.3331798]
[1645182606807,0.00076573,40549.0,40548.0,7.98e-05]
[1645182606808,0.33386573,40549.0,40548.0,7.98e-05]
[1645182607008,0.38326573,40549.0,40548.0,7.98e-05]
[1645182607609,0.38487798,40549.0,40548.0,7.98e-05]
[1645182608411,0.38487798,40549.0,40547.0,0.24011099]
[1645182608412,0.54761286,40548.0,40547.0,0.24011099]
[1645182608609,0.54761286,40548.0,40531.0,0.05]
[1645182608610,0.061737,40543.0,40531.0,0.05]
[1645182608809,0.7,40537.0,40531.0,0.05]
[1645182609010,0.3825,40536.0,40531.0,0.05]
[1645182609207,0.0494,40536.0,40531.0,0.05]
[1645182609875,0.1,40533.0,40531.0,0.05]
[1645182610060,0.3825,40532.0,40531.0,0.05]
[1645182610263,0.0494,40532.0,40531.0,0.05]
[1645182610463,0.0494,40532.0,40531.0,0.04765787]
[1645182610862,0.0494,40532.0,40531.0,0.85618533]
[1645182611062,0.0494,40532.0,40531.0,0.57308533]
[1645182611262,0.00039965,40537.0,40532.0,0.0494]
[1645182611463,0.02400797,40546.0,40533.0,0.3417]
[1645182611464,0.0494,40536.0,40533.0,0.3417]
[1645182611660,0.0494,40536.0,40533.0,0.3831]
[1645182612358,0.0494,40536.0,40534.0,0.34343773]
[1645182612559,0.02400797,40546.0,40534.0,0.34343773]
[1645182612560,0.02400797,40546.0,40535.0,0.3331]
[1645182612860,0.07340797,40546.0,40543.0,0.26214264]
[1645182613062,0.13511597,40546.0,40543.0,0.26214264]
[1645182613259,0.07340797,40546.0,40543.0,0.26214264]
[1645182613710,0.07340797,40546.0,40544.0,0.3331]
[1645182613711,0.02400797,40546.0,40544.0,0.3331]
[1645182613908,0.02400797,40546.0,40543.0,0.31214264]
[1645182614109,0.02400797,40546.0,40544.0,0.3331]
[1645182614708,0.02400797,40546.0,40545.0,0.33498811]
[1645182614909,0.02400797,40546.0,40545.0,0.66808811]
[1645182615108,0.02400797,40546.0,40545.0,0.71808811]
[1645182616508,0.02400797,40546.0,40545.0,0.95808811]
[1645182617361,0.02400797,40546.0,40545.0,1.25808811]
[1645182617554,0.02400797,40546.0,40545.0,1.26281039]
[1645182617754,0.00039964,40548.0,40545.0,1.26281039]
[1645182617953,0.00039964,40548.0,40546.0,0.3331]
[1645182618359,0.00039964,40548.0,40547.0,0.83240521]
[1645182618554,0.061693,40556.0,40548.0,0.3331]
[1645182618756,0.00039963,40549.0,40548.0,0.3831]
[1645182619755,0.06169,40557.0,40548.0,0.3831]
[1645182619955,0.00039963,40551.0,40549.0,0.3331]
[1645182620755,0.00039963,40551.0,40550.0,0.20572871]
[1645182620962,0.061693,40555.0,40550.0,0.53882871]
[1645182621203,0.00039962,40552.0,40550.0,0.20572871]
[1645182621404,0.00039962,40552.0,40551.0,0.3331]
[1645182622307,0.123379,40556.0,40550.0,0.52651805]
[1645182622505,0.00039962,40554.0,40550.0,0.52651805]
[1645182622703,0.00039962,40554.0,40550.0,0.20572871]
[1645182622905,0.061693,40553.0,40550.0,0.20572871]
[1645182623106,0.00039962,40554.0,40550.0,0.20572871]
[1645182623408,0.07396833,40558.0,40532.0,0.0999]
[1645182623409,1.297,40548.0,40532.0,0.0999]
[1645182623609,0.49996899,40552.0,40536.0,0.045]
[1645182623610,0.8,40544.0,40536.0,0.045]
[1645182623806,0.0494,40543.0,40525.0,0.3331]
[1645182624007,0.36298243,40542.0,40525.0,0.3331]
[1645182624205,0.061713,40539.0,40537.0,0.21221495]
[1645182625052,0.7494,40544.0,40537.0,0.21221495]
[1645182625053,0.0494,40544.0,40538.0,1.1831]
[1645182625252,0.07399236,40545.0,40538.0,0.3331]
[1645182625452,0.061698,40547.0,40544.0,0.27794934]
[1645182625652,0.123396,40547.0,40545.0,0.52860662]
[1645182626052,0.123396,40547.0,40545.0,0.19550662]
[1645182626356,0.123396,40547.0,40545.0,0.16046072]
[1645182626551,0.123396,40547.0,40546.0,0.3331]
[1645182626751,0.061698,40547.0,40546.0,0.3331]
[1645182626950,0.36298243,40548.0,40546.0,0.3331]
[1645182627353,0.42467543,40550.0,40546.0,0.3331]
[1645182627553,0.36298243,40549.0,40546.0,0.3331]
[1645182627754,0.54807843,40549.0,40546.0,0.3331]
[1645182627952,0.36298243,40547.0,40546.0,0.3331]
[1645182628152,0.04507669,40548.0,40546.0,0.3331]
[1645182628153,0.36298243,40548.0,40546.0,0.3331]
[1645182628353,0.54807843,40549.0,40547.0,0.3331]
[1645182628597,0.061697,40548.0,40546.0,0.3331]
[1645182629001,0.42467943,40548.0,40546.0,0.3331]
[1645182629196,0.42467943,40548.0,40545.0,0.24]
[1645182629398,0.54808243,40548.0,40545.0,0.24]
[1645182630397,0.54808243,40548.0,40545.0,0.45775596]
[1645182630998,0.36298243,40547.0,40545.0,0.45775596]
[1645182631399,0.36298243,40546.0,40545.0,0.24]
[1645182631603,0.025944,40546.0,40545.0,0.24]
[1645182631799,0.175344,40546.0,40545.0,0.24]
[1645182632199,0.29877206,40546.0,40545.0,0.24]
[1645182632647,1.59577206,40546.0,40537.0,0.3]
[1645182632862,0.7,40538.0,40526.0,0.00037101]
[1645182633053,0.7,40538.0,40517.0,0.0999]
[1645182633054,0.7,40528.0,40517.0,0.0999]
[1645182633353,0.7,40528.0,40526.0,0.00037099]
[1645182633354,0.0617376,40527.0,40526.0,0.00037099]
[1645182633751,0.06174,40527.0,40526.0,0.00037099]
[1645182634152,0.06174,40527.0,40521.0,0.56305694]
[1645182634350,0.123475,40527.0,40524.0,0.0003724]
[1645182634652,0.06174,40527.0,40524.0,0.0003724]
[1645182635448,0.06174,40527.0,40521.0,0.20322486]
[1645182635849,0.06174,40527.0,40521.0,0.53036949]
[1645182636612,0.06174,40527.0,40520.0,0.20807803]
[1645182636814,0.06174,40527.0,40522.0,0.00036818]
[1645182637313,0.123478,40527.0,40522.0,0.00036818]
[1645182637513,0.06174,40527.0,40522.0,0.00036818]
[1645182637714,0.123475,40525.0,40522.0,0.00036818]
[1645182637912,0.123475,40525.0,40520.0,0.20807803]
[1645182638113,0.123475,40525.0,40522.0,0.00037834]
[1645182638314,0.06471234,40526.0,40522.0,0.00037834]
[1645182638713,0.06471234,40526.0,40524.0,0.26416915]
[1645182638914,0.06471234,40526.0,40522.0,0.00037834]
[1645182638915,0.456573,40525.0,40522.0,0.00037834]
[1645182639117,0.3825,40524.0,40516.0,0.0084]
[1645182639317,0.3331,40523.0,40517.0,0.00151359]
[1645182639513,0.061754,40522.0,40517.0,0.00151359]
[1645182639714,0.394853,40521.0,40517.0,0.00151359]
[1645182639957,0.061753,40521.0,40519.0,1.1529557]
[1645182640158,0.061754,40522.0,40519.0,1.1529557]
[1645182640357,0.061754,40522.0,40519.0,0.7898557]
[1645182640761,0.7,40521.0,40519.0,0.24]
[1645182640958,0.3331,40520.0,40519.0,0.24]
[1645182641258,0.3825,40520.0,40519.0,0.17563267]
[1645182641459,0.4825,40520.0,40519.0,0.17563267]
[1645182642059,0.1494,40520.0,40519.0,0.17563267]
[1645182642357,0.4825,40520.0,40519.0,0.17563267]
[1645182642557,0.0494,40520.0,40519.0,0.17563267]
[1645182642759,0.1494,40520.0,40519.0,0.17563267]
[1645182642959,0.4825,40520.0,40519.0,0.17563267]
[1645182643361,0.4825,40520.0,40511.0,0.00139243]
[1645182643362,0.3331,40519.0,40511.0,0.00139243]
[1645182643601,1.094873,40512.0,40511.0,0.00139243]
[1645182643803,1.094873,40512.0,40509.0,0.001]
[1645182643804,1.244273,40512.0,40509.0,0.001]
[1645182644003,0.3331,40511.0,40509.0,0.001]
[1645182644203,0.0494,40510.0,40509.0,0.001]
[1645182644411,0.0494,40510.0,40509.0,0.32946558]
[1645182644604,0.0494,40510.0,40509.0,0.001]
[1645182645605,0.0494,40510.0,40508.0,0.25839714]
[1645182645807,0.0494,40510.0,40508.0,0.30839714]
[1645182646103,0.0494,40510.0,40508.0,0.25839714]
[1645182646704,0.0494,40510.0,40507.0,0.23903646]
[1645182646904,0.0494,40510.0,40507.0,0.00031017]
[1645182647549,0.0494,40510.0,40506.0,0.003]
[1645182647550,0.0494,40510.0,40509.0,0.00353227]
[1645182648350,0.0494,40510.0,40509.0,0.00363792]
[1645182649353,1.0825,40510.0,40505.0,0.28613448]
[1645182649552,0.061765,40509.0,40503.0,0.22465926]
[1645182650354,0.061765,40509.0,40503.0,0.0039241]
[1645182650553,0.061765,40509.0,40503.0,0.26906212]
[1645182650756,0.361765,40509.0,40503.0,0.26906212]
[1645182650957,0.12354455,40508.0,40503.0,0.26906212]
[1645182651206,0.12354455,40508.0,40503.0,1.3e-07]
[1645182651414,0.061783,40506.0,40500.0,3.22613228]
[1645182651611,0.3331,40502.0,40500.0,2.6649777]
[1645182651809,0.77176514,40501.0,40500.0,2.6399777]
[1645182652207,0.13866514,40501.0,40500.0,2.6399777]
[1645182652411,0.0494,40502.0,40500.0,2.6399777]
[1645182652706,0.111185,40502.0,40500.0,2.6399777]
[1645182652906,0.111185,40502.0,40500.0,2.8799777]
[1645182654307,0.3331,40501.0,40500.0,2.8799777]
[1645182654508,0.111185,40502.0,40500.0,2.8799777]
[1645182655154,0.3331,40501.0,40500.0,2.8799777]
[1645182655351,0.10812568,40502.0,40500.0,2.8799777]
[1645182655553,0.061785,40502.0,40500.0,2.8799777]
[1645182655951,0.061785,40502.0,40500.0,2.8749777]
[1645182656352,0.3331,40501.0,40500.0,2.8749777]
[1645182657753,0.33521282,40501.0,40500.0,2.8749777]
[1645182657955,0.00211282,40501.0,40500.0,2.8749777]
[1645182658353,0.33521282,40501.0,40500.0,2.8749777]
[1645182659805,0.43521282,40501.0,40500.0,2.8749777]
[1645182660220,1.251,40500.0,40477.0,0.0026104]
[1645182660421,1.251,40500.0,40472.0,1.47196023]
[1645182660422,1.251,40500.0,40472.0,0.00144276]
[1645182660423,0.123659,40482.0,40472.0,0.00144276]
[1645182660617,0.123659,40482.0,40462.0,0.3]
[1645182660618,0.05117,40473.0,40462.0,0.3]
[1645182660814,0.05117,40473.0,40465.0,0.00026551]
[1645182660815,0.54994794,40472.0,40465.0,0.00026551]
[1645182661010,0.7,40466.0,40462.0,0.27]
[1645182661209,0.7,40466.0,40460.0,0.00026551]
[1645182661409,0.7,40466.0,40459.0,0.00026551]
[1645182661410,0.0494,40465.0,40459.0,0.00026551]
[1645182661714,0.52996219,40464.0,40459.0,0.00026551]
[1645182661916,0.52996219,40464.0,40460.0,0.19269184]
[1645182661917,0.3825,40463.0,40460.0,0.19269184]
[1645182662109,0.0494,40463.0,40460.0,0.46643082]
[1645182662361,0.0494,40470.0,40460.0,0.00026551]
[1645182662557,0.88550721,40467.0,40459.0,0.00026551]
[1645182662759,0.061841,40464.0,40458.0,0.28931826]
[1645182662957,0.247368,40464.0,40458.0,0.28931826]
[1645182663258,0.247368,40464.0,40461.0,0.00010958]
[1645182663458,0.0494,40463.0,40461.0,0.00010958]
[1645182663658,0.3331,40462.0,40461.0,0.00010958]
[1645182663858,0.0494,40462.0,40461.0,0.00010958]
[1645182664058,0.0494,40462.0,40461.0,0.00075758]
[1645182664458,0.3825,40462.0,40461.0,0.00075758]
[1645182664691,0.0494,40462.0,40461.0,0.00075758]
[1645182665040,0.0494,40462.0,40461.0,0.33385758]
[1645182665159,0.0494,40462.0,40461.0,0.00075758]
[1645182665557,0.0494,40462.0,40461.0,0.26976348]
[1645182665759,0.0494,40462.0,40461.0,0.60286348]
[1645182665957,0.061824,40466.0,40460.0,0.333461]
[1645182666203,0.123653,40468.0,40459.0,0.24938507]
[1645182666403,0.333461,40467.0,40459.0,0.24938507]
[1645182666607,0.123653,40468.0,40459.0,0.24938507]
[1645182667004,0.333461,40466.0,40463.0,0.34244153]
[1645182667205,0.00039501,40465.0,40463.0,0.34244153]
[1645182667608,0.00039501,40465.0,40464.0,0.333461]
[1645182667805,0.00039501,40465.0,40460.0,0.1]
[1645182668008,0.75026,40471.0,40461.0,0.333461]
[1645182668205,0.75026,40471.0,40460.0,0.1]
[1645182668206,0.00493139,40462.0,40460.0,0.1]
[1645182668404,0.00493139,40462.0,40461.0,0.333461]
[1645182669004,0.00493139,40462.0,40460.0,0.35439746]
[1645182669204,0.00493139,40462.0,40461.0,0.333461]
[1645182669605,0.00493139,40462.0,40460.0,0.35439746]
[1645182669858,0.00493139,40462.0,40460.0,0.25439746]
[1645182670049,0.00493139,40462.0,40460.0,0.35439746]
[1645182670248,0.00493139,40462.0,40460.0,0.25439746]
[1645182671450,0.061834,40461.0,40460.0,0.25439746]
[1645182672250,0.061834,40461.0,40460.0,0.49711951]
[1645182672450,0.061834,40461.0,40457.0,0.06144635]
[1645182672650,0.061834,40461.0,40456.0,0.06274891]
[1645182672850,0.061834,40461.0,40457.0,0.333461]
[1645182673049,0.061834,40461.0,40460.0,0.00193571]
[1645182673450,0.061834,40461.0,40460.0,0.33782189]
[1645182674405,0.061834,40461.0,40460.0,0.00193571]
[1645182675603,0.061834,40461.0,40460.0,0.43406038]
[1645182677008,0.061834,40461.0,40460.0,0.24]
[1645182677009,0.395295,40461.0,40460.0,0.24]
[1645182677208,0.061834,40461.0,40460.0,0.24]
[1645182678059,0.061834,40461.0,40460.0,0.47646593]
[1645182678260,0.061834,40461.0,40460.0,0.24296382]
[1645182678261,0.395295,40461.0,40460.0,0.24296382]
[1645182679063,0.333461,40458.0,40456.0,0.00167339]
[1645182679262,0.061847,40457.0,40456.0,0.00167339]
[1645182679466,0.395308,40457.0,40456.0,0.00167339]
[1645182679662,0.061847,40457.0,40456.0,0.00167339]
[1645182679863,0.395308,40457.0,40454.0,0.00246339]
[1645182680062,0.395308,40457.0,40454.0,0.00300131]
[1645182680063,0.061847,40457.0,40454.0,0.00300131]
[1645182680261,0.061847,40457.0,40454.0,0.00337215]
[1645182680466,0.333461,40456.0,40454.0,0.00337215]
[1645182680667,0.67201465,40455.0,40454.0,0.00337215]
[1645182680868,0.52141465,40455.0,40448.0,0.0110449]
[1645182681109,0.061863,40451.0,40448.0,0.01212074]
[1645182681304,0.457192,40449.0,40448.0,0.01212074]
[1645182681505,0.506592,40449.0,40440.0,0.26353584]
[1645182681705,0.506592,40449.0,40444.0,0.00026438]
[1645182681706,0.173131,40449.0,40444.0,0.00026438]
[1645182681904,0.173131,40449.0,40443.0,0.00026438]
[1645182682103,0.173131,40449.0,40442.0,0.16001253]
[1645182682321,0.183031,40449.0,40442.0,0.16001253]
[1645182682506,0.03855365,40447.0,40442.0,0.16001253]
[1645182682706,0.333461,40446.0,40442.0,0.16001253]
[1645182682905,0.333461,40446.0,40442.0,0.15001253]
[1645182683104,0.333461,40445.0,40442.0,0.14501253]
[1645182683305,0.061864,40445.0,40442.0,0.14501253]
[1645182683509,0.86228965,40443.0,40442.0,0.14501253]
[1645182683716,0.823736,40443.0,40442.0,0.14501253]
[1645182683905,0.873136,40443.0,40442.0,0.14501253]
[1645182684509,1.24515065,40443.0,40442.0,0.14501253]
[1645182684709,1.306597,40443.0,40442.0,0.14501253]
[1645182684961,1.24515065,40443.0,40442.0,0.14501253]
[1645182685565,1.25365643,40443.0,40442.0,0.14501253]
[1645182685863,1.21510278,40443.0,40442.0,0.14501253]
[1645182686062,1.21510278,40443.0,40437.0,0.00155028]
[1645182686063,0.19781177,40435.0,40434.0,0.3355683]
[1645182686268,0.19781177,40435.0,40434.0,0.3305683]
[1645182686662,0.19781177,40435.0,40430.0,0.06144635]
[1645182686663,0.19781177,40435.0,40433.0,0.333522]
[1645182687163,0.19781177,40435.0,40434.0,0.28515367]
[1645182687465,0.19781177,40435.0,40434.0,0.73135502]
[1645182687664,0.19781177,40435.0,40434.0,0.48135502]
[1645182687862,0.19781177,40435.0,40434.0,0.41990867]
[1645182688063,0.14731177,40435.0,40434.0,0.78135502]
[1645182688264,0.26416056,40453.0,40446.0,0.2461761]
[1645182688465,0.061858,40451.0,40439.0,0.333522]
[1645182688711,0.061858,40451.0,40434.0,0.11144635]
[1645182688712,0.061859,40447.0,40434.0,0.11144635]
[1645182688912,0.10041265,40447.0,40434.0,0.06144635]
[1645182689108,0.361859,40447.0,40435.0,0.333522]
[1645182689308,0.061859,40447.0,40443.0,0.2612703]
[1645182689509,0.061859,40447.0,40444.0,0.25366397]
[1645182689907,0.061859,40447.0,40438.0,0.00036742]
[1645182690110,0.061859,40447.0,40432.0,0.38946635]
[1645182690310,0.061859,40447.0,40433.0,0.333522]
[1645182690707,0.123725,40447.0,40433.0,0.333522]
[1645182690909,0.1855912,40447.0,40444.0,0.26855807]
[1645182691109,0.061859,40447.0,40444.0,0.26855807]
[1645182691910,0.061859,40447.0,40444.0,0.52528774]
[1645182692212,0.061859,40447.0,40444.0,0.26855807]
[1645182692883,0.123725,40447.0,40444.0,0.26855807]
[1645182693083,0.0012216,40446.0,40435.0,0.24626652]
[1645182693284,0.0012216,40446.0,40436.0,0.084753]
[1645182693482,0.061864,40444.0,40436.0,0.084753]
[1645182693983,0.0012216,40446.0,40441.0,0.25798644]
[1645182694484,0.061864,40444.0,40442.0,0.333522]
[1645182694882,0.00161643,40446.0,40441.0,0.22808644]
[1645182695686,0.0012216,40446.0,40441.0,0.22808644]
[1645182695884,0.00161643,40446.0,40441.0,0.22808644]
[1645182696101,0.00161643,40446.0,40441.0,0.50818905]
[1645182697001,0.0012216,40446.0,40441.0,0.50818905]
[1645182697203,0.00161643,40446.0,40441.0,0.50818905]
[1645182698203,0.06428201,40444.0,40442.0,0.333522]
[1645182698606,0.00241801,40444.0,40443.0,0.084649]
[1645182698811,0.00241801,40444.0,40443.0,0.633522]
[1645182699009,0.00161643,40446.0,40444.0,0.084649]
[1645182699012,2.444e-05,40446.0,40444.0,0.084649]
[1645182699310,0.00118542,40447.0,40444.0,0.084649]
[1645182699706,0.00118542,40447.0,40445.0,0.20254711]
[1645182699956,0.00118542,40447.0,40446.0,0.084641]
[1645182700156,0.3,40458.0,40446.0,0.084641]
[1645182700356,0.12233572,40459.0,40446.0,0.084641]
[1645182700557,0.42233572,40459.0,40446.0,0.084641]
[1645182701359,0.42233572,40459.0,40457.0,0.22225085]
[1645182701563,0.12233572,40459.0,40458.0,0.084598]
[1645182701760,0.12233572,40459.0,40458.0,0.08485965]
[1645182701964,0.5,40460.0,40458.0,0.08485965]
[1645182701965,0.48683572,40460.0,40458.0,0.08485965]
[1645182702261,0.48658475,40460.0,40458.0,0.08485965]
[1645182702462,0.48658475,40460.0,40459.0,0.22971965]
[1645182702661,0.48658475,40460.0,40459.0,0.08485565]
[1645182702859,0.48658475,40460.0,40459.0,0.084594]
[1645182703061,0.48629572,40460.0,40459.0,0.084594]
[1645182703815,0.48629572,40460.0,40458.0,0.00026165]
[1645182704014,0.48629572,40460.0,40455.0,0.10016165]
[1645182704213,0.69304761,40460.0,40456.0,0.084603]
[1645182704414,0.69304761,40460.0,40456.0,0.08486465]
[1645182704620,0.20675189,40459.0,40456.0,0.08486465]
[1645182704815,0.20675189,40459.0,40457.0,0.39620473]
[1645182705016,0.66304761,40460.0,40457.0,0.39646638]
[1645182705617,0.45629572,40460.0,40457.0,0.39646638]
[1645182706018,0.66304761,40460.0,40458.0,0.26882574]
[1645182706317,0.45629572,40460.0,40458.0,0.26882574]
[1645182707122,0.45629572,40460.0,40458.0,0.26855979]
[1645182708056,0.45629572,40460.0,40458.0,0.27189238]
[1645182708255,0.45629572,40460.0,40458.0,0.57189238]
[1645182708655,0.45629572,40460.0,40458.0,0.30333259]
[1645182708861,0.45629572,40460.0,40458.0,0.32186476]
[1645182709059,0.66304761,40460.0,40458.0,0.32186476]
[1645182709356,0.45629572,40460.0,40458.0,0.32186476]
[1645182709557,0.66304761,40460.0,40459.0,0.270017]
[1645182709764,0.45629572,40460.0,40459.0,0.270017]
[1645182710558,0.45629572,40460.0,40458.0,0.32186476]
[1645182711511,0.45629572,40460.0,40458.0,0.32286476]
[1645182711718,0.45629572,40460.0,40447.0,1.60550422]
[1645182711912,0.45629572,40460.0,40458.0,0.005]
[1645182712714,0.45629538,40460.0,40459.0,0.53154162]
[1645182712914,0.45629538,40460.0,40459.0,0.53487068]
[1645182713514,0.45029538,40460.0,40459.0,0.25604198]
[1645182714714,0.45029538,40460.0,40459.0,0.51918134]
[1645182716659,0.00034646,40462.0,40460.0,0.95]
[1645182716857,0.00034646,40462.0,40459.0,0.51918134]
[1645182717061,0.00034646,40462.0,40459.0,0.25604198]
[1645182717459,0.25843987,40468.0,40460.0,0.24407799]
[1645182717662,0.00034646,40463.0,40460.0,0.24407799]
[1645182717858,0.00104511,40461.0,40460.0,0.24407799]
[1645182721315,0.00070511,40461.0,40460.0,0.24407799]
[1645182722217,0.55843987,40472.0,40460.0,0.24407799]
[1645182722218,0.55843987,40472.0,40460.0,1.54107799]
[1645182722471,7.88e-06,40463.0,40462.0,1.358807]
[1645182722669,7.88e-06,40463.0,40462.0,1.858207]
[1645182723067,7.88e-06,40463.0,40462.0,1.4464]